Cogmind - Beta 16 @@@ ROGUE MODE // 2025.12.30 @ 20:01:59 Player: lvl5hm Result: Self-destructed Performance ------------- Evolutions (7) 3500 Regions Visited (10) 2000 Robots Destroyed (141) 705 Value Destroyed (2967) 2967 Prototype IDs (24) 480 Alien Tech Used (0) 0 Bonus (-429) -429 TOTAL SCORE: 9223 Bonus ------- High Alert Combat Kills 22 Follower Combat Kills 300 Friendly Fire -751 Cogmind --------- Core Integrity 1091/1300 Matter 41/300 Energy 90/100 System Corruption 1% Temperature Cool (0) Movement Flying (32) Location -3/Research Parts ------- > --- POWER (2) -------- (None) > --- PROPULSION (6) --- Nuclear Pulse Array Improved Diametric Drive > --- UTILITY (11) ----- Experimental Signal Interpreter Long-range Terrain Scanner Experimental Terrain Scan Processor Advanced Hacking Suite Advanced Hacking Suite Experimental Hacking Suite Improved System Shield > --- WEAPON (2) ------- Heavy Mace > --- INVENTORY (5) ---- Quantum Capacitor Advanced Point Defense System Authchip [Device] Authchip [Armor] Peak State ------------ > --- POWER ------------ Micro Fission Core Light Antimatter Reactor > --- PROPULSION ------- Field Propulsion Drive Impulse Thruster Field Propulsion Array Diametric Drive Improved Diametric Drive > --- UTILITY ---------- Large Storage Unit Gravity Neutralizer Long-range Sensor Array Experimental Signal Interpreter Long-range Terrain Scanner Experimental Terrain Scan Processor Advanced Hacking Suite Advanced Hacking Suite Advanced Hacking Suite Experimental Hacking Suite Improved System Shield > --- WEAPON ----------- Mini Smartbomb Launcher Heavy Mace > --- INVENTORY -------- Nuclear Pulse Array Advanced Coolant Injector Core Analyzer Quantum Capacitor Graphene Brace Advanced Point Defense System Authchip [Propulsion] Authchip [Propulsion] Authchip [Device] Authchip [Armor] Authchip [Armor] Advanced Corruption Screen Gamma Bomb Array [Rating: 143] Favorites ----------- Power Micro Fission Core Engine Improved Ion Engine Power Core Micro Fission Core Reactor Light Antimatter Reactor Propulsion Armored Treads Treads Armored Treads Flight Unit Improved Flight Unit Utility Advanced Hacking Suite Device Heat Sink Storage High-capacity Storage Unit Processor Advanced Signal Interpreter Hackware Advanced Hacking Suite Protection Hardened Light Armor Plating Weapon Assault Rifle Energy Gun Medium Laser Energy Cannon Particle Cannon Ballistic Gun Assault Rifle Launcher Mini Smartbomb Launcher Special Weapon Improved Remote Datajack Impact Weapon Heavy Mace Slashing Weapon Katana Build | -11 -10 -9 -8 -7 -6 -5 -4 -4 -4 -3 ------- Run | Yrd Mat Mat Mat Fac Fac Fac Fac Was Fac Res Slots Evolved 14 | . . 2 2 2 2 2 2 . . 2 Power 1 | . . . . . . 1 . . . . Propulsion 4 | . . 1 1 1 . . . . . 1 Utility 9 | . . 1 1 1 2 1 2 . . 1 Weapon . | . . . . . . . . . . . Parts Attached 134 | 9 10 28 17 10 18 9 10 3 8 12 Power 13 | 2 1 5 1 . 1 1 1 . . 1 Engine 8 | 2 1 5 . . . . . . . . Core 4 | . . . 1 . 1 1 1 . . . Reactor 1 | . . . . . . . . . . 1 Propulsion 35 | 2 2 9 7 3 3 . 3 . 3 3 Treads 15 | 2 2 8 3 . . . . . . . Leg . | . . . . . . . . . . . Wheel . | . . . . . . . . . . . Hover . | . . . . . . . . . . . Flight 20 | . . 1 4 3 3 . 3 . 3 3 Utility 56 | 2 3 5 4 6 14 6 4 2 5 5 Device 17 | 1 2 1 1 1 3 3 1 1 1 2 Storage 4 | 1 1 . 1 . . 1 . . . . Processor 6 | . . 1 2 . 1 . . . 1 1 Hackware 22 | . . . . 2 10 2 3 . 3 2 Protection 7 | . . 3 . 3 . . . 1 . . Artifact . | . . . . . . . . . . . Weapon 30 | 3 4 9 5 1 . 2 2 1 . 3 Energy Gun 4 | 2 1 1 . . . . . . . . Energy Cannon 2 | . . 1 . . . . . 1 . . Ballistic Gun 11 | 1 3 6 1 . . . . . . . Ballistic Cannon . | . . . . . . . . . . . Launcher 6 | . . . 2 . . 1 1 . . 2 Special Weapon 2 | . . . . 1 . . 1 . . . Impact Weapon 2 | . . 1 . . . . . . . 1 Slashing Weapon 3 | . . . 2 . . 1 . . . . Piercing Weapon . | . . . . . . . . . . . Special Melee Weapon . | . . . . . . . . . . . Unidentified Prototypes 15 | . . 4 1 1 1 2 1 . 1 4 Parts Lost 16 | . . . 1 . . . 1 . 5 9 Power 2 | . . . . . . . . . . 2 Propulsion 5 | . . . . . . . . . 1 4 Utility 9 | . . . 1 . . . 1 . 4 3 Weapon . | . . . . . . . . . . . Highest Loss Streak 9 | . . . 1 . . . 1 . 2 9 To Critical Strikes . | . . . . . . . . . . . Average Backups 13 | 1 11 18 19 8 9 10 13 12 12 12 Power 1 | . 1 1 1 1 . 1 1 . . . Propulsion 3 | . 1 6 7 1 . . . 1 1 1 Utility 5 | . 2 5 5 4 6 8 8 9 8 8 Weapon 3 | . 5 6 5 1 1 1 2 2 2 2 Tool/Special . | . . . . . . . . . . . Unused Backups 39 | . 2 11 8 . 2 2 1 . . 13 Power 1 | . . . 1 . . . . . . . Propulsion 10 | . . 6 4 . . . . . . . Utility 16 | . . . 1 . 1 1 1 . . 12 Weapon 12 | . 2 5 2 . 1 1 . . . 1 Tool/Special . | . . . . . . . . . . . Average Slot Usage (%) 96 | . 100 99 98 88 92 93 94 98 93 89 Engine 6 | . 14 11 8 . . . . . . . Core 3 | . . . . 7 6 10 10 10 10 6 Treads 18 | . 28 33 34 . . . . . . . Flight 12 | . . . 1 38 33 28 26 26 26 22 Device 11 | . 14 11 9 6 5 10 9 10 13 13 Storage 9 | . 14 11 9 7 6 5 5 5 5 4 Processor 3 | . . . 8 7 6 5 5 5 5 8 Hackware 9 | . . . . 10 25 23 25 26 22 19 Protection 4 | . . 10 8 1 . . 4 4 4 2 Energy Gun 2 | . 11 1 . . . . . . . . Ballistic Gun 10 | . 16 19 14 . . . . . . . Slashing Weapon 2 | . . . 2 7 6 4 4 5 4 . Peak Build Rating 143 | 7 8 25 32 40 64 86 107 113 116 143 Average Rating 43 | 6 7 21 27 36 52 76 97 106 106 129 On Entrance 51 | . 7 8 23 23 39 64 81 106 104 111 Avg Prop Armor Cover (%) 5 | . . . . . . . . . . 5 Naked Turns . | . . . . . . . . . . . Heaviest Build 60 | 15 50 60 60 25 22 39 43 53 45 50 Greatest Support 80 | 40 40 60 80 26 27 39 43 43 45 55 Greatest Overweight (x) 2 | . 1 1 . 1 . 1 1 1 . 2 Average Overweight (x) . | . . . . . . . . . . . Largest Inventory Capacity 20 | 8 20 20 20 10 10 15 15 15 15 15 Average Capacity 16 | 7 19 20 19 10 10 14 15 15 15 14 Most Carried 20 | 2 18 20 20 10 10 15 15 15 15 15 Average Carried 14 | 1 11 18 19 8 9 10 13 14 14 14 Final Capacity 20 | 8 20 20 10 10 10 15 15 15 15 5 Final Carried 20 | 2 17 20 7 10 10 14 14 14 15 5 Class Distribution -------------------- 53% | Mutant 21% | Hacker-Sprinter 11% | Wizard-Sprinter 5% | Scavenger-Mutant 3% | Hacker-Scout Dominant Class ---------------- Mutant | -10/Materials Mutant | -9/Materials Mutant | -8/Materials Hacker-Sprinter | -7/Factory Hacker-Sprinter | -6/Factory Hacker-Sprinter | -5/Factory Wizard-Sprinter | -4/Factory Wizard-Sprinter | -4/Waste Wizard-Sprinter | -4/Factory Hacker-Scout | -3/Research Resources | -11 -10 -9 -8 -7 -6 -5 -4 -4 -4 -3 ----------- Run | Yrd Mat Mat Mat Fac Fac Fac Fac Was Fac Res Matter Collected 3919 | 290 204 1242 518 159 248 330 418 154 160 196 Remotely . | . . . . . . . . . . . Salvage Created 4999 | 294 550 1609 550 159 160 410 532 . 441 294 Parts 314 | 28 24 126 43 13 5 21 19 . 23 12 Haulers Intercepted 10 | . 2 6 1 . . 1 . . . . Recyclers Shooed 5 | . . 2 . 1 . . 1 . 1 . Parts Field Recycled . | . . . . . . . . . . . Retrieved Matter . | . . . . . . . . . . . Parts Self-Destructed . | . . . . . . . . . . . Prevented . | . . . . . . . . . . . Parts Restored . | . . . . . . . . . . . Kills | -11 -10 -9 -8 -7 -6 -5 -4 -4 -4 -3 ------- Run | Yrd Mat Mat Mat Fac Fac Fac Fac Was Fac Res Combat Hostiles Destroyed 76 | . 12 31 16 . . 4 2 . 9 2 Guns 49 | . 12 26 11 . . . . . . . Cannons 5 | . . 5 . . . . . . . . AOE 22 | . . . 5 . . 4 2 . 9 2 Classes Destroyed 14 | 3 5 2 . . 1 . 1 . 1 1 Worker 10 | 1 . . 1 1 . 2 2 . . 3 Builder 4 | . . 1 . . . 2 1 . . . Tunneler 11 | 9 1 . . . . . . . 1 . Hauler 10 | . 2 6 1 . . 1 . . . . Recycler 11 | 1 . 1 1 1 1 1 3 . 1 1 Mechanic 1 | . . . . . 1 . . . . . Operator 9 | . 1 3 1 2 . . . . 1 1 Watcher 7 | . 2 1 . 1 . 2 1 . . . Swarmer 38 | . 5 10 10 . . 4 . . 9 . Grunt 22 | . 7 12 3 . . . . . . . Sentry 12 | . . 9 3 . . . . . . . Hunter 2 | . . . . . . . . . . 2 Programmer 2 | . . . . . . . 2 . . . Martyr 2 | . . . . . . . . . 2 . Best Kill Streak 9 | 4 4 5 4 2 1 8 2 . 9 4 Combat Bots Only 9 | . 2 5 4 . . 4 2 . 9 1 Max Kills in Single Turn 6 | 1 2 1 3 1 1 4 1 . 6 3 Gunslinging . | . . . . . . . . . . . Exploded 6 | . . . 3 . . 3 1 . 6 1 Melee . | . . . . . . . . . . . Uniques/NPCs Destroyed . | . . . . . . . . . . . Combat | -11 -10 -9 -8 -7 -6 -5 -4 -4 -4 -3 -------- Run | Yrd Mat Mat Mat Fac Fac Fac Fac Was Fac Res Hostile Shots Fired 502 | . 85 120 92 10 8 21 12 . 45 109 Missed 195 | . 32 39 20 9 5 10 3 . 25 52 Hits 307 | . 53 81 72 1 3 11 9 . 20 57 Melee 1 | . . . . . . . . . 1 . Projectile 306 | . 53 81 72 1 3 11 9 . 19 57 Critical Strikes 10 | . . 2 3 . . 2 1 . 1 1 Damage Taken 4410 | . 503 1004 941 16 56 283 215 . 388 1004 Core 578 | . 74 28 70 . 23 111 63 . . 209 Absorbed by Shields . | . . . . . . . . . . . Regen/Repaired (Parts) 469 | . . . . . 16 17 125 193 118 . Core Remaining (%) 91 | 100 70 93 87 100 97 88 . . 94 . Volleys Fired 252 | 17 62 109 43 1 . 2 3 . 4 11 Largest 2 | 2 2 2 2 1 . 1 1 . 1 1 Hottest 120 | 100 100 88 46 5 . 50 50 . 120 120 Shots Fired 481 | 34 126 218 82 1 . 2 3 . 4 11 Gun 439 | 34 126 201 78 . . . . . . . Cannon 23 | . . 17 . . . . . . 1 5 Launcher 17 | . . . 4 . . 2 2 . 3 6 Special 2 | . . . . 1 . . 1 . . . Kinetic 300 | . 26 196 78 . . . . . . . Thermal 162 | 34 100 22 . . . . . . 1 5 Explosive 17 | . . . 4 . . 2 2 . 3 6 Electromagnetic . | . . . . . . . . . . . Robot Hit Streak 16 | 9 14 12 16 2 . . 1 . . . Robot Miss Streak 4 | 2 2 3 2 . . . 4 . . . Penetration Max . | . . . . . . . . . . . Secondary Targets 3 | . . 3 . . . . . . . . Max Gunslinging Chain 1 | . . 1 . . . . . . . . Shots Hit Robots 368 | 23 84 141 60 9 10 9 17 . 13 2 Core Hits 201 | 12 29 61 28 4 2 16 15 . 22 12 Critical Kills . | . . . . . . . . . . . Critical Parts Destroyed . | . . . . . . . . . . . Critical Strikes 15 | 3 8 . 1 . . 1 1 . 1 . Burn 11 | 3 8 . . . . . . . . . Sever 4 | . . . 1 . . 1 1 . 1 . Melee Attacks 226 | . . 5 10 29 32 46 40 . 47 17 Impact 17 | . . 5 . . . . . . . 12 Slashing 209 | . . . 10 29 32 46 40 . 47 5 Piercing . | . . . . . . . . . . . Sneak Attacks 33 | . . 1 2 3 4 5 7 . 9 2 Combat Hostiles . | . . . . . . . . . . . Follow-up Attacks . | . . . . . . . . . . . Damage Inflicted 10964 | 303 1082 2483 1408 447 541 918 1140 . 1636 1006 Guns 4344 | 303 1082 2126 833 . . . . . . . Cannons 247 | . . 247 . . . . . . . . Explosions 2302 | . . . 344 . . 385 250 . 587 736 Melee 4031 | . . 80 221 447 541 533 890 . 1049 270 Ramming 40 | . . 30 10 . . . . . . . Kinetic 3134 | . 209 2092 833 . . . . . . . Thermal 1457 | 303 873 281 . . . . . . . . Explosive 2302 | . . . 344 . . 385 250 . 587 736 Electromagnetic . | . . . . . . . . . . . Impact 80 | . . 80 . . . . . . . . Slashing 3951 | . . . 221 447 541 533 890 . 1049 270 Piercing . | . . . . . . . . . . . Highest Corruption 8 | . 4 8 . . . . . . 3 1 Average Corruption 5 | . 3 6 . . . . . . 3 1 Corruption Purged . | . . . . . . . . . . . Corruption Blocked . | . . . . . . . . . . . Effects 80 | . 29 51 . . . . . . . . Message Errors 17 | . 6 11 . . . . . . . . Matter Fused 20 | . 10 10 . . . . . . . . Heat Flow Errors 10 | . 2 8 . . . . . . . . Energy Discharges 13 | . 6 7 . . . . . . . . Parts Rejected 2 | . . 2 . . . . . . . . Parts Fused 2 | . . 2 . . . . . . . . Data Loss (minor) 4 | . 2 2 . . . . . . . . Data Loss (major) 3 | . . 3 . . . . . . . . Misfires 5 | . 2 3 . . . . . . . . Alerts 3 | . 1 2 . . . . . . . . Weapon Failures 1 | . . 1 . . . . . . . . Overload Shots . | . . . . . . . . . . . Overflow Damage 933 | . . . 89 88 157 63 200 . 122 214 Projectiles . | . . . . . . . . . . . Explosions 78 | . . . 42 . . . 2 . 15 19 Melee 855 | . . . 47 88 157 63 198 . 107 195 Knockbacks . | . . . . . . . . . . . Impact . | . . . . . . . . . . . Kinetic . | . . . . . . . . . . . Secondary . | . . . . . . . . . . . Self-Inflicted Damage 94 | . . . . . . 55 24 . 15 . Shots 5 | . . . . . . 3 1 . 1 . Rammed 5 | . . 4 1 . . . . . . . Targets Rammed 5 | . . 4 1 . . . . . . . Kicked . | . . . . . . . . . . . Crushed . | . . . . . . . . . . . Highest Temperature 256 | 117 248 254 52 68 6 36 19 8 86 256 Average Temperature 27 | 42 66 45 11 20 2 6 5 3 13 46 Received Heat Transfer 1200 | . 144 393 450 9 9 81 9 . 48 57 Siege Activations . | . . . . . . . . . . . Martial Activations . | . . . . . . . . . . . Shielding Activations . | . . . . . . . . . . . Robots Disrupted . | . . . . . . . . . . . Combat Hostiles . | . . . . . . . . . . . Robots Corrupted . | . . . . . . . . . . . Combat Hostiles . | . . . . . . . . . . . Parts Fried . | . . . . . . . . . . . Impact Corruptions . | . . . . . . . . . . . Robots Melted 1 | . 1 . . . . . . . . . Combat Hostiles . | . . . . . . . . . . . Parts Melted 14 | 4 10 . . . . . . . . . Heat Transferred 4810 | 1110 3182 518 . . . . . . . . Parts Sabotaged . | . . . . . . . . . . . Parts Stolen . | . . . . . . . . . . . Parts Stripped . | . . . . . . . . . . . Power Chain Reactions . | . . . . . . . . . . . Alert | -11 -10 -9 -8 -7 -6 -5 -4 -4 -4 -3 ------- Run | Yrd Mat Mat Mat Fac Fac Fac Fac Was Fac Res Maximum Alert Level 2 | . . 2 1 . . . . . 1 1 Low Security (%) 79 | 100 100 46 37 100 100 100 100 100 94 95 Level 1 18 | . . 42 62 . . . . . 5 4 Level 2 2 | . . 11 . . . . . . . . Level 3 . | . . . . . . . . . . . Level 4 . | . . . . . . . . . . . Level 5 . | . . . . . . . . . . . High Security . | . . . . . . . . . . . Max Security . | . . . . . . . . . . . Peak Influence 429 | 15 130 429 269 84 58 177 149 73 264 218 Initial 145 | . . . 145 79 21 7 54 49 . 129 Average 101 | 2 16 226 208 48 10 40 47 26 62 120 Influence Increases 4339 | 55 350 953 531 255 201 523 320 74 754 323 Destroy 0b10 Robot/C 1720 | . 240 620 320 . 40 80 40 . 340 40 Destroy 0b10 Robot/NC 320 | 55 30 60 20 25 10 40 35 . 25 20 Destroy Leader 394 | . 48 174 72 2 10 16 12 . 50 10 Allied During Kill 75 | . . . . . . . . . 75 . Successful Hack 219 | . . 26 . . 50 28 50 . 45 20 Disable Machine 210 | . . 45 75 30 . . 30 . 30 . Destroy Structure 591 | . 2 13 44 18 16 134 78 74 114 98 Partial Spotted 255 | . . . . 90 30 60 45 . 30 . Lose Combat Pursuer 555 | . 30 15 . 90 45 165 30 . 45 135 Influence Decreases 4215 | 55 350 608 700 387 228 428 291 215 506 447 Entered New Map 599 | . . . 200 97 23 10 58 92 . 119 Time Decay 3002 | 55 350 608 490 270 185 231 221 63 291 238 Lost Part 145 | . . . 10 . . . 10 . 35 90 Lost Ally 292 | . . . . 20 20 10 2 60 180 . Purge Threat 177 | . . . . . . 177 . . . . Squads Dispatched 47 | . 1 3 2 6 6 8 4 . 7 10 Investigation 18 | . . . . 3 3 4 . . 4 4 Extermination 12 | . . . . 2 3 2 2 . 1 2 Reinforcement 17 | . 1 3 2 1 . 2 2 . 2 4 Assault . | . . . . . . . . . . . Garrison . | . . . . . . . . . . . Intercept . | . . . . . . . . . . . Searches Triggered . | . . . . . . . . . . . Construction Impeded 1 | . . . . . . . 1 . . . Haulers Reinforced . | . . . . . . . . . . . Active Scanning Responses . | . . . . . . . . . . . Cargo Convoy Interrupts . | . . . . . . . . . . . Stealth | -11 -10 -9 -8 -7 -6 -5 -4 -4 -4 -3 --------- Run | Yrd Mat Mat Mat Fac Fac Fac Fac Was Fac Res Distress Signals 18 | . 3 4 1 . . 2 2 . 4 2 Communications Jammed . | . . . . . . . . . . . Distress Signals . | . . . . . . . . . . . Times Spotted 271 | . 26 55 21 16 22 31 19 5 49 27 Peak Tracking Total 15 | . 5 4 5 3 6 14 9 5 15 12 Tactical Retreats 31 | . 2 1 . 3 3 10 1 . 7 4 ECM-based Alert Blocks 50 | . . . . . 12 14 . . 24 . Traps | -11 -10 -9 -8 -7 -6 -5 -4 -4 -4 -3 ------- Run | Yrd Mat Mat Mat Fac Fac Fac Fac Was Fac Res Traps Triggered 14 | . 3 2 . 3 . 1 3 . 1 1 Indirectly . | . . . . . . . . . . . Trap Hack Attempts . | . . . . . . . . . . . Triggered . | . . . . . . . . . . . Disarmed . | . . . . . . . . . . . Reprogrammed . | . . . . . . . . . . . Reused . | . . . . . . . . . . . Traps Extracted . | . . . . . . . . . . . Installed . | . . . . . . . . . . . Triggered . | . . . . . . . . . . . Machines | -11 -10 -9 -8 -7 -6 -5 -4 -4 -4 -3 ---------- Run | Yrd Mat Mat Mat Fac Fac Fac Fac Was Fac Res Machines Disabled 14 | . . 3 5 2 . . 2 . 2 . Max in Single Turn 1 | . . 1 1 1 . . 1 . 1 . Garrison Access 3 | . . . . 1 . 1 . . 1 . Machines Repaired . | . . . . . . . . . . . Machines Dismantled . | . . . . . . . . . . . Machines Sabotaged . | . . . . . . . . . . . Overloaded Fab Kills . | . . . . . . . . . . . Hacking | -11 -10 -9 -8 -7 -6 -5 -4 -4 -4 -3 --------- Run | Yrd Mat Mat Mat Fac Fac Fac Fac Was Fac Res Machines Accessed 73 | . 6 5 1 11 9 15 7 . 11 8 Terminals 46 | . 6 5 1 6 5 8 5 . 6 4 Fabricators 16 | . . . . 3 3 3 . . 3 4 Repair Stations 5 | . . . . . 1 2 1 . 1 . Recycling Units . | . . . . . . . . . . . Scanalyzers 3 | . . . . 1 . 1 1 . . . Garrison Access 3 | . . . . 1 . 1 . . 1 . Total Hacks 205 | . 13 13 3 21 31 47 22 . 36 19 Successful 123 | . 1 7 2 12 23 28 11 . 24 15 Failed 81 | . 12 6 1 8 8 19 11 . 12 4 Catastrophic 15 | . 4 2 . 1 1 3 3 . 1 . Database Lockouts 1 | . . . . 1 . . . . . . Manual 144 | . 13 13 1 13 17 33 17 . 22 15 Terminals 126 | . 13 13 3 10 14 24 19 . 20 10 Fabricators 55 | . . . . 7 14 12 . . 13 9 Repair Stations 12 | . . . . . 3 5 2 . 2 . Recycling Units . | . . . . . . . . . . . Scanalyzers 5 | . . . . 2 . 2 1 . . . Garrison Access 7 | . . . . 2 . 4 . . 1 . Terminal Hacks 41 | . 1 7 1 1 4 12 5 . 6 4 Part Schematic 16 | . 1 4 . . 2 4 3 . 1 1 Level Access Points 3 | . . . . . . 1 . . 1 1 Machine Index 2 | . . . . . . . 1 . 1 . Terminal Index 3 | . . . . . 1 1 . . . 1 Fabricator Index 4 | . . . . 1 1 1 . . . 1 Unreport Threat 3 | . . . . . . 3 . . . . Transport Status 2 | . . 2 . . . . . . . . Recall Investigation 3 | . . . . . . 1 . . 2 . Recall Extermination 3 | . . . . . . 1 1 . 1 . Hauler Manifests 2 | . . 1 1 . . . . . . . Fabricator Hacks 31 | . . . . 3 10 5 . . 9 4 Load Schematic 22 | . . . . 3 6 4 . . 5 4 Build 9 | . . . . . 4 1 . . 4 . Repair Station Hacks 8 | . . . . . 2 2 2 . 2 . Scan Component 4 | . . . . . 1 1 1 . 1 . Repair 4 | . . . . . 1 1 1 . 1 . Recycling Unit Hacks . | . . . . . . . . . . . Scanalyzer 4 | . . . . 1 . 2 1 . . . Insert Component 2 | . . . . . . 2 . . . . Retrieve Study 2 | . . . . 1 . . 1 . . . Garrison Access Hacks 3 | . . . . 1 . 1 . . 1 . Seal Access 3 | . . . . 1 . 1 . . 1 . Unauthorized Hacks 36 | . . . 1 6 7 6 3 . 6 7 Terminals 21 | . . . 1 4 4 3 3 . 3 3 Assimilate 9 | . . . . 2 1 1 2 . 2 1 Botnet 10 | . . . . 2 2 2 1 . 1 2 Operators 2 | . . . 1 . 1 . . . . . Fabricators 15 | . . . . 2 3 3 . . 3 4 Prioritize 3 | . . . . . 1 . . . 2 . Recompile 12 | . . . . 2 2 3 . . 1 4 Repair Stations . | . . . . . . . . . . . Recycling Units . | . . . . . . . . . . . Scanalyzers . | . . . . . . . . . . . Garrison Access . | . . . . . . . . . . . Data Cores Recovered . | . . . . . . . . . . . Used . | . . . . . . . . . . . Hacking Detections 56 | . 6 4 . 8 7 11 6 . 8 6 Full Trace Events 7 | . 1 . . 1 1 1 . . 3 . Feedback Events 1 | . . . . . . . . . 1 . Hackware Fried 1 | . . . . . . . . . 1 . Feedback Blocked . | . . . . . . . . . . . Robot Schematics Acquired . | . . . . . . . . . . . Robots Built . | . . . . . . . . . . . Authchips . | . . . . . . . . . . . Time . | . . . . . . . . . . . Total Robot Build Rating . | . . . . . . . . . . . Part Schematics Acquired 16 | . 1 4 . . 2 4 3 . 1 1 Parts Built 11 | . . . . . 4 2 . . 5 . Authchips 7 | . . . . . 4 1 . . 2 . Time 454 | . . . . . 176 39 . . 239 . Total Part Build Rating 72 | . . . . . 24 14 . . 34 . Part Studies Acquired 2 | . . . . 1 . . 1 . . . Parts Repaired 4 | . . . . . 1 1 1 . 1 . Time 78 | . . . . . 22 25 19 . 12 . Parts Recycled . | . . . . . . . . . . . Recycled Matter . | . . . . . . . . . . . Retrieved Matter . | . . . . . . . . . . . Retrieved Components . | . . . . . . . . . . . Parts Scanalyzed . | . . . . . . . . . . . Part Schematics Acquired . | . . . . . . . . . . . Parts Damaged . | . . . . . . . . . . . Bothacking | -11 -10 -9 -8 -7 -6 -5 -4 -4 -4 -3 ------------ Run | Yrd Mat Mat Mat Fac Fac Fac Fac Was Fac Res Used RIF Installer . | . . . . . . . . . . . Robots Hacked 2 | . . . . 1 . . 1 . . . Non-combat 2 | . . . . 1 . . 1 . . . Combat . | . . . . . . . . . . . Robot Hacks Applied 2 | . . . . 1 . . 1 . . . find_chute 2 | . . . . 1 . . 1 . . . Relay Couplers Released . | . . . . . . . . . . . Fabnet Peak Effective % . | . . . . . . . . . . . Robots Rewired 1 | . . . . . 1 . . . . . Allies Hacked . | . . . . . . . . . . . Hacks Repelled . | . . . . . . . . . . . Allies | -11 -10 -9 -8 -7 -6 -5 -4 -4 -4 -3 -------- Run | Yrd Mat Mat Mat Fac Fac Fac Fac Was Fac Res Total Allies 29 | . . . . 2 2 1 2 19 2 1 Largest Group 19 | . . . . 1 2 1 2 19 15 1 Highest-Rated Group 684 | . . . . 26 55 26 36 684 602 45 Highest-Rated Ally 50 | . . . . 26 29 26 26 50 50 45 Total Orders 6 | . . . . . 2 . 3 . 1 . STAY 5 | . . . . . 2 . 2 . 1 . FOLLOW 1 | . . . . . . . 1 . . . Ally Attacks 133 | . . . . . 6 . . 62 65 . Total Damage 4035 | . . . . . 57 . . 2663 1315 . Kills 22 | . . . . . 2 . . 8 12 . Allies Corrupted . | . . . . . . . . . . . Allies Melted . | . . . . . . . . . . . Intel | -11 -10 -9 -8 -7 -6 -5 -4 -4 -4 -3 ------- Run | Yrd Mat Mat Mat Fac Fac Fac Fac Was Fac Res Active Infowar (turns) 6542 | 158 211 1055 906 559 880 737 631 172 728 505 Sensors 4069 | . . . . 559 817 679 631 172 728 483 Terrain 503 | . . . . . . . . . 1 502 Seismic 2330 | 158 211 1055 906 . . . . . . . ECM 407 | . . . . . 63 77 . . 267 . Robot Analysis Total . | . . . . . . . . . . . Derelict Logs Recovered . | . . . . . . . . . . . Drone Launches . | . . . . . . . . . . . Drone Recoveries . | . . . . . . . . . . . Exploration | -11 -10 -9 -8 -7 -6 -5 -4 -4 -4 -3 ------------- Run | Yrd Mat Mat Mat Fac Fac Fac Fac Was Fac Res Turns Passed 10744 | 245 2340 2510 1299 595 907 797 646 172 728 505 Spaces Moved 11949 | 104 843 1184 708 1486 2237 1515 1006 240 1469 1157 Core 7 | 5 . . . . . . . . . 2 Treads 2741 | 99 843 1184 615 . . . . . . . Legs . | . . . . . . . . . . . Wheels . | . . . . . . . . . . . Hover . | . . . . . . . . . . . Flight 9201 | . . . 93 1486 2237 1515 1006 240 1469 1155 Fastest Speed 25 | 50 160 160 29 26 26 26 26 29 26 25 Average Speed 64 | 154 238 167 148 26 26 26 27 35 28 28 Slowest Speed 250 | 160 240 250 167 104 27 97 97 105 29 150 Overloaded Moves . | . . . . . . . . . . . Propulsion Burnouts . | . . . . . . . . . . . Robots Hopped 92 | . . . . 10 19 24 4 . 33 2 Potential Cave-ins 2 | . . . . . . . . . . 2 Cave-ins Triggered . | . . . . . . . . . . . Exploration Rate (%) 47 | 7 94 87 50 39 40 40 25 78 34 30 Regions Visited 10 Branch Regions . Pre-discovered Areas . | . . . . . . . . . . . Known Exits Taken 6 | . . 1 1 1 1 1 . . 1 . Unknown Exits Taken 2 | 1 1 . . . . . . . . . Scrap Searched . | . . . . . . . . . . . Spaces Dug 172 | . . 4 13 18 16 47 21 . 33 20 Terrain Destroyed 338 | . . 4 46 18 16 79 54 . 69 52 Melee 138 | . . 4 3 18 16 31 21 . 30 15 Projectile 5 | . . . . . . . . . . 5 AOE 195 | . . . 43 . . 48 33 . 39 32 Terrain Rammed . | . . . . . . . . . . . Walls Destroyed . | . . . . . . . . . . . Machines Disabled . | . . . . . . . . . . . Actions | -11 -10 -9 -8 -7 -6 -5 -4 -4 -4 -3 --------- Run | Yrd Mat Mat Mat Fac Fac Fac Fac Was Fac Res Total 14085 | 150 1050 1525 869 1626 2475 1797 1302 327 1667 1297 Wait 1236 | 20 114 116 46 59 171 207 214 74 150 65 Move 11776 | 103 842 1183 707 1465 2200 1472 999 239 1413 1153 Hop 72 | . . . . 10 17 18 3 . 22 2 Pick Up 111 | 1 14 26 8 10 14 9 8 2 6 13 Fast Attach 47 | 7 . 6 3 5 1 7 7 1 2 8 Attach 47 | . . 3 7 5 8 5 6 1 6 6 Detach 22 | . . 3 4 2 1 4 2 3 1 2 Swap 131 | 2 11 31 15 3 17 21 12 3 13 3 Drop 122 | . 7 39 25 7 6 6 8 4 3 17 Fire 252 | 17 62 109 43 1 . 2 3 . 4 11 Melee 226 | . . 5 10 29 32 46 40 . 47 17 Ram . | . . . . . . . . . . . Kick . | . . . . . . . . . . . Crush 5 | . . 4 1 . . . . . . . Escape Stasis 30 | . . . . 30 . . . . . . Rewire 8 | . . . . . 8 . . . . . Trap . | . . . . . . . . . . . Miscellaneous . | . . . . . . . . . . . Route ------- -11/Scrapyard -10/Materials (discovered 4 exits: *Mat x3 / [*Min]) -9/Materials (discovered 5 exits: *Mat x3 / [*Min x2]) -8/Materials -7/Factory (discovered 5 exits: *Fac x3 / *Sto / [*Low]) -6/Factory (discovered 2 exits: *Fac / *Low) -5/Factory (discovered 5 exits: *Fac x4 / *Upp) -4/Factory -4/Waste -4/Factory (discovered 4 exits: *Res x4) -3/Research (discovered 4 exits: Res x3 / [Qua]) History --------- Turn | Location | Event 7 | -11/Scrapyard | Discovered new exit (range 14) 246 | -11/Scrapyard | Entered Materials 321 | -10/Materials | Build established: Mutant 809 | -10/Materials | Discovered new exit (range 12) 1226 | -10/Materials | Discovered new exit (range 15) 1821 | -10/Materials | Discovered new exit (range 12) 2328 | -10/Materials | Discovered new exit (range 14) 2586 | -10/Materials | Entered another Materials area 2586 | -9/Materials | Evolved 2 slots: Propulsion x1, Utility x1 2884 | -9/Materials | Build established: Scavenger-Mutant 2894 | -9/Materials | Discovered new exit (range 15) 2969 | -9/Materials | Identified exit to Materials 3261 | -9/Materials | Discovered new exit (range 8) 3490 | -9/Materials | Build established: Mutant 4114 | -9/Materials | Discovered new exit (range 8) 4401 | -9/Materials | Discovered exit to Materials (range 16) 4882 | -9/Materials | Discovered exit to Materials (range 13) 5096 | -9/Materials | Entered another Materials area 5096 | -8/Materials | Evolved 2 slots: Propulsion x1, Utility x1 5802 | -8/Materials | Discovered new exit (range 16) 6343 | -8/Materials | Identified exit to Factory 6395 | -8/Materials | Entered Factory 6395 | -7/Factory | Evolved 2 slots: Propulsion x1, Utility x1 6400 | -7/Factory | Discovered new exit (range 8) 6403 | -7/Factory | Identified exit to Factory 6588 | -7/Factory | Central database locked down 6602 | -7/Factory | Discovered new exit (range 11) 6623 | -7/Factory | Discovered exit to Factory (range 12) 6740 | -7/Factory | Discovered new exit (range 15) 6755 | -7/Factory | Identified exit to Storage 6866 | -7/Factory | Build established: Hacker-Sprinter 6906 | -7/Factory | Discovered exit to Factory (range 13) 6990 | -7/Factory | Entered another Factory area 6990 | -6/Factory | Evolved 2 slots: Utility x2 7069 | -6/Factory | Repaired Mic. Nuclear Core+ 7163 | -6/Factory | Discovered new exit (range 14) 7166 | -6/Factory | Identified exit to Lower Caves 7266 | -6/Factory | Fabricated Adv. Hacking Suite (x1) 7304 | -6/Factory | Fabricated Adv. Hacking Suite (x1) 7605 | -6/Factory | Fabricated Adv. Hacking Suite (x1) 7616 | -6/Factory | Discovered new exit (range 11) 7662 | -6/Factory | Fabricated Adv. Hacking Suite? 7894 | -6/Factory | Identified exit to Factory 7897 | -6/Factory | Entered another Factory area 7897 | -5/Factory | Evolved 2 slots: Power x1, Utility x1 7939 | -5/Factory | Found Prototype Launcher 7939 | -5/Factory | Identified Scatter Rocket Array 8010 | -5/Factory | Discovered new exit (range 6) 8012 | -5/Factory | Identified exit to Upper Caves 8054 | -5/Factory | Repaired Imp. Flight Unit 8348 | -5/Factory | Fabricated Lrn. Sensor Array (x2) 8428 | -5/Factory | Identified exit to Factory 8694 | -5/Factory | Entered another Factory area 8694 | -4/Factory | Evolved 2 slots: Utility x2 8978 | -4/Factory | Build established: Wizard-Sprinter 9155 | -4/Factory | Repaired Imp. Light Armor Plating 9165 | -4/Factory | Discovered new exit (range 11) 9196 | -4/Factory | Found Prototype Launcher 9196 | -4/Factory | Identified Com. Tesla Bomb Launcher 9210 | -4/Factory | Found Quantum Capacitor 9340 | -4/Factory | Manually triggered Chute Trap 9340 | -4/Factory | Sucked down chute 9340 | -4/Factory | Entered Waste 9343 | -4/Waste | Spotted C-40 Crusher 9346 | -4/Waste | Spotted C-40 Crusher 9348 | -4/Waste | Spotted C-40 Crusher 9355 | -4/Waste | Spotted C-40 Crusher 9360 | -4/Waste | Discovered new exit (range 12) 9363 | -4/Waste | Found Adv. Powered Armor 9364 | -4/Waste | Spotted C-40 Crusher 9370 | -4/Waste | Warlord forces began an assault 9372 | -4/Waste | Allies destroyed C-40 Crusher 9373 | -4/Waste | Allies destroyed C-40 Crusher 9379 | -4/Waste | Allies destroyed C-40 Crusher 9379 | -4/Waste | Allies destroyed C-40 Crusher 9391 | -4/Waste | Spotted C-40 Crusher 9459 | -4/Waste | Identified exit to Factory 9512 | -4/Waste | Entered Factory 9512 | -4/Factory | Accompanied by 14 allies 9520 | -4/Factory | Adv. Hacking Suite fried by hacking feedback 9603 | -4/Factory | Fabricated Lrn. Terrain Scanner (x2) 9899 | -4/Factory | Identified exit to Research 10014 | -4/Factory | Repaired Imp. Light Armor Plating 10105 | -4/Factory | Fabricated Exp. Terrain Scan Processor (x1) 10150 | -4/Factory | Fabricated Mni. Smartbomb Launcher? 10157 | -4/Factory | Fabricated Exp. Signal Interpreter (x1) 10240 | -4/Factory | Entered Research 10240 | -3/Research | Evolved 2 slots: Propulsion x1, Utility x1 10253 | -3/Research | Destroyed 9 combat bots 10263 | -3/Research | Discovered new exit (range 22) 10275 | -3/Research | Identified exit to Research 10334 | -3/Research | Found Prototype Launcher 10334 | -3/Research | Identified Tactical Quantum Warhead 10375 | -3/Research | Spotted B-86 Titan 10576 | -3/Research | Found Prototype Device 10576 | -3/Research | Identified Exp. EM Disruption Field 10588 | -3/Research | Found Gamma Bomb Array 10598 | -3/Research | Found Prototype Hackware 10598 | -3/Research | Identified Exp. Hacking Suite 10709 | -3/Research | Discovered new exit (range 13) 10745 | -3/Research | Self-destructed Last Messages --------------- 10715_ U-05 Engineer lays Concrete. 10717_ Slug penetrates U-05 Engineer. 10723_ Penetrated by Slug. 10724_ Slug penetrates Wall. 10726_ Field Propulsion Drive destroyed. 10727_ Gravity Neutralizer destroyed. 10728_ Slug penetrates Wall. 10728_ Penetrated by Slug. 10730_ Acquired Adv. Force Field. 10731_ Dropped Nuclear Pulse Array. 10731_ Acquired Nuclear Pulse Array. 10734_ Slug penetrates Wall. 10740_ Penetrated by Slug. 10740_ Lrn. Sensor Array destroyed. 10744_ Penetrated by Slug. 10744_ Lgt. Antimatter Reactor destroyed. 10744_ Field Propulsion Array destroyed. 10744_ Impulse Thruster destroyed. 10744_ Adv. Hacking Suite destroyed. 10744_ Dropped Lrg. Storage Unit. Map ----- +----------------------------------------------------+ | #???########??########## ### ################### | | #??#?################### ### ################### | | ?####################### ### ################### | | #???#################### ### ################### | | ???##################### ####################### | | ??###################### # ################# | | ???##?######### # # ################# | | #?#?########### # # ################? | | ?#??########### """ # # ""#######?###### | | ?############## """ # # ""######?####### | | ###########?### """ + # S"############## | | ?#####?######## # w# "?"?##?#?######## | | ###?########?## # # """############## | | ############### # # ? ""?############## | | ?############## # # ################# | | ##########?############# # ## ? ##?### | | #################! / # # ## #####? | | ###########?##### + ###+#### ? ###### | | ################# # # ##### | | ###?############# # + ##### | | ################# # k # ? ###### | | #####?####?###### * #h ## T## # ? # | | #######################;ho ###### # # | | ?#######################h!h###### ########### | | ??#?##?##?######?#?#####]!!######?########### | | ?###?#######?## #!@]######+########### | | ??####?########?? ?? #!!!# ######## | | #####?######### "" # ! # ######## | | ######?##?##### "" # # ""G"" ######## | | ?###########?## T" # # " " ######## | | ?########?####? "" # # " " ############# | | ############### "" + u + ############# | | ##????######### # # ############# | | ??#??########## # # ############# | | ???##################### x####################### | | ???###?#####?##?####?## ! ###################### | | ????##?######?##?? | | ???????##?####?## ?#### | | ??????##?#?##?### ###?? | | ?????????######## ####? ################### | | ????????####??# #####+##################### | | ??????????##### ?# ################# | | ???????????#### ? + ######## # | | ??????????##?#? ? ?# """ ######## # | | ??????#####?###? # """" ######## """ # | | ?????????####???##### """" ######## "T" # | | ?????##?#?########### """ ######## " " + | | ???###?#?#?#####?#### ######## # | | ?????########?#?##### ######## # | | ?###?#?############################### # | +----------------------------------------------------+ Best States ------------- Heat Dissipation 46 Energy Generation 32 Energy Capacity 280 Matter Stores 300 Matter Capacity 300 Sight Range 16 Robot Scan Range 18 Terrain Scan Range 24 Terrain Scan Density 1010 ECM Strength 1 Additional Mass Support 12 Armor Coverage 400 Evasion (%) 65 Targeting Accuracy 8 Recoil Reduction 4 Offensive Hacking 58 Defensive Hacking 22 Authchip Count 5 Item Schematics ----------------- Signal Interpreter | -10/Materials | Hacked Seismic Detector | -9/Materials | Hacked VTOL Module | -9/Materials | Hacked Assault Rifle | -9/Materials | Hacked Lgt. Armor Plating | -9/Materials | Hacked Adv. Hacking Suite | -6/Factory | Hacked Gravity Neutralizer | -6/Factory | Hacked Exp. Targeting Computer | -5/Factory | Hacked Lrn. Sensor Array | -5/Factory | Hacked Lrn. Terrain Scanner | -5/Factory | Hacked Mni. Smartbomb Launcher | -5/Factory | Hacked Exp. Terrain Scan Processor | -4/Factory | Hacked Exp. Signal Interpreter | -4/Factory | Hacked Centrium Heavy Armor Plating | -4/Factory | Hacked Adv. Cloaking Device | -4/Factory | Hacked Centrium Heavy Treads | -3/Research | Hacked Robot Schematics ------------------ None Fabricated ------------ Adv. Hacking Suite | x1 | -6/Factory | Authchip Adv. Hacking Suite | x1 | -6/Factory | Authchip Adv. Hacking Suite | x1 | -6/Factory | Authchip Adv. Hacking Suite | x1 | -6/Factory | Authchip Lrn. Sensor Array | x2 | -5/Factory | Authchip Lrn. Terrain Scanner | x2 | -4/Factory | Authchip Exp. Terrain Scan Processor | x1 | -4/Factory | Authchip Mni. Smartbomb Launcher | x1 | -4/Factory Exp. Signal Interpreter | x1 | -4/Factory Repaired ---------- Mic. Nuclear Core | 68% | -6/Factory Imp. Flight Unit | 57% | -5/Factory Imp. Light Armor Plating | 30% | -4/Factory Imp. Light Armor Plating | 34% | -4/Factory Studied --------- Mic. Nuclear Core | -7/Factory | Hacked Mic. Fission Core | -4/Factory | Hacked Alien Tech Used ----------------- None Achievements -------------- None Challenges ------------ None Game ------ Seed PiercingSkeletonRipteeth Manual? 0 Play Time 02:27:45 Cumulative 339.5 hours Start 2025.12.30 @ 17:34:26 End 2025.12.30 @ 20:01:59 Sessions 1 Manual Loads 0 Difficulty Rogue Special Mode None Game No. 233 Rogue 230 Adventurer 3 Explorer 0 Win Type - Total 16 Types 8/1/3/1/1/0/0/1/0/1 Lore% 77 Gallery% 79 Achievement% 71 Wizard Run 0 Options --------- Layout 2 ASCII 0 Keyboard 1 Movement Arrows Keybinds 0 Fullscreen 1 Font 32/SmallcapsGlow Map View 50x44 Zoom Use 0% Tactical HUD 1 Map Filters NONE Filters NONE Steam 1 RUN: 861da5e6-45c0-46f6-add9-8969637b0047